bitfinex/quotes_ETHUSD_20220118
["timestamp","ask_amount","ask_price","bid_price","bid_amount"]
[1642549263539,1.13805064,3167.3,3167.0,3.15676]
[1642549263737,1.13805064,3167.3,3167.1,0.78919]
[1642549263942,1.08805064,3167.3,3167.1,0.78919]
[1642549266380,0.00454739,3167.5,3167.1,0.78919]
[1642549266581,0.00454739,3167.5,3167.2,3.7379332]
[1642549266781,0.00397897,3167.4,3167.3,1.57822]
[1642549266987,0.00397897,3167.4,3167.3,2.42653]
[1642549267183,0.00397897,3167.4,3167.3,2.55273]
[1642549267381,0.00397897,3167.4,3167.3,2.59122184]
[1642549267579,0.00397897,3167.4,3167.3,9.33403269]
[1642549268585,0.00397897,3167.4,3167.3,4.13403269]
[1642549269642,0.00397897,3167.4,3167.3,8.53579343]
[1642549270032,0.00397897,3167.4,3167.3,5.13579343]
[1642549271042,0.1262,3168.6,3167.7,0.78908]
[1642549271244,0.1262,3168.6,3168.1,0.78889]
[1642549271439,0.1262,3168.6,3168.2,6.30570189]
[1642549271641,0.1262,3168.6,3168.2,7.03770189]
[1642549271838,0.1262,3168.6,3168.3,1.25642394]
[1642549272039,1.14981745,3168.5,3168.4,5.455]
[1642549272247,1.14981745,3168.5,3168.4,5.48761804]
[1642549272637,1.14981745,3168.5,3168.4,0.48761804]
[1642549272837,1.14981745,3168.5,3168.4,0.455]
[1642549273285,1.04981745,3168.5,3168.4,2.8217258]
[1642549276946,1.04981745,3168.5,3168.1,0.1262]
[1642549277340,0.00568423,3168.4,3168.1,0.1262]
[1642549277740,0.00511581,3168.3,3168.1,0.1262]
[1642549278144,0.00454739,3168.2,3168.1,0.1262]
[1642549278743,0.00454739,3168.2,3168.0,2.3673226]
[1642549278946,0.00454739,3168.2,3168.0,1.57825]
[1642549279143,0.00397896,3168.1,3167.9,0.09331]
[1642549279344,1.27090556,3168.0,3167.9,0.09331]
[1642549279644,1.2743161,3168.0,3167.9,0.09331]
[1642549280443,1.2743161,3168.0,3167.9,4.99331]
[1642549280983,1.2743161,3168.0,3167.9,8.78887355]
[1642549281582,1.2743161,3168.0,3167.9,8.90727355]
[1642549281784,1.2743161,3168.0,3167.9,6.08239]
[1642549281982,1.2743161,3168.0,3167.9,6.20859]
[1642549282183,1.2743161,3168.0,3167.9,8.9031682]
[1642549282382,0.00341054,3168.0,3167.9,8.9031682]
[1642549282590,0.00341054,3168.0,3167.9,10.41665852]
[1642549282782,0.00341054,3168.0,3167.9,10.53505852]
[1642549283189,0.00341054,3168.0,3167.9,10.53585852]
[1642549283388,0.00341054,3168.0,3167.9,9.4765682]
[1642549283787,0.00341054,3168.0,3167.9,9.3581682]
[1642549284088,0.00341054,3168.0,3167.9,9.4789682]
[1642549284336,0.00341054,3168.0,3167.9,9.4781682]
[1642549284830,0.00341054,3168.0,3167.9,10.54511889]
[1642549285234,0.00341054,3168.0,3167.9,11.54831889]
[1642549285431,1.1633,3169.2,3168.5,0.78889]
[1642549285837,0.00568423,3169.0,3168.5,3.45936313]
[1642549286030,1.06898423,3169.2,3168.5,0.78889]
[1642549286232,1.30639597,3168.9,3168.6,0.00227369]
[1642549286434,1.30639597,3168.9,3168.7,1.57767]
[1642549286632,1.30639597,3168.9,3168.8,0.78885]
[1642549286834,1.30639597,3168.9,3168.8,0.78998684]
[1642549288896,1.06898423,3169.2,3168.8,0.78998684]
[1642549289196,1.06898423,3169.2,3168.8,4.25289244]
[1642549289495,1.06898423,3169.2,3168.8,5.04164244]
[1642549290402,1.15465332,3168.9,3168.8,5.04164244]
[1642549290596,1.06898423,3169.2,3168.8,5.13495244]
[1642549290797,1.06898423,3169.2,3168.9,0.455]
[1642549290998,9.4712,3169.4,3169.0,0.7887326]
[1642549290999,5.7788,3169.4,3169.0,0.7887326]
[1642549291198,5.7788,3169.4,3169.1,2.03248]
[1642549291398,0.00170527,3169.3,3169.1,2.03248]
[1642549291596,0.00170527,3169.3,3169.2,0.09331]
[1642549291840,1.40189716,3169.3,3169.2,2.4]
[1642549292737,1.40189716,3169.3,3169.2,3.282]
[1642549293738,1.40189716,3169.3,3169.2,0.78869]
[1642549295450,9.7246,3170.2,3169.6,0.78871]
[1642549295685,5.8593,3170.2,3169.6,0.78871]
[1642549295884,0.00454739,3169.8,3169.6,0.78871]
[1642549296283,5.7331,3170.2,3169.6,0.78871]
[1642549296284,0.00397897,3169.7,3169.6,0.78871]
[1642549296484,0.00397897,3169.7,3169.6,3.80782252]
[1642549296687,0.00397897,3169.7,3169.6,4.35613252]
[1642549296887,0.00397897,3169.7,3169.6,4.96033252]
[1642549297087,0.00397897,3169.7,3169.6,6.08633252]
[1642549297287,0.00397897,3169.7,3169.6,9.70873252]
[1642549297489,0.00397897,3169.7,3169.6,9.71273252]
[1642549297688,0.00397897,3169.7,3169.6,6.51113252]
[1642549297889,0.00397897,3169.7,3169.6,6.51033252]
[1642549298095,0.00397897,3169.7,3169.6,6.69146252]
[1642549298289,0.00397897,3169.7,3169.6,6.69306252]
[1642549298489,0.00397897,3169.7,3169.6,6.68986252]
[1642549298690,1.19824032,3169.7,3169.6,6.69306252]
[1642549298889,1.19824032,3169.7,3169.6,6.57866252]
[1642549299533,1.19824032,3169.7,3169.6,5.79013252]
[1642549299933,1.19824032,3169.7,3169.6,4.49013252]
[1642549300132,1.19824032,3169.7,3169.6,4.19013252]
[1642549300334,1.19824032,3169.7,3169.6,1.47102]
[1642549300938,1.19824032,3169.7,3169.6,1.34502]
[1642549302041,1.19824032,3169.7,3169.6,0.463]
[1642549302245,1.19824032,3169.7,3169.4,0.126]
[1642549302440,0.13830916,3169.6,3168.8,0.00113684]
[1642549302640,0.0155197,3169.6,3168.8,0.00113684]
[1642549302840,0.00284212,3169.5,3168.7,0.09501527]
[1642549303293,0.0022737,3169.4,3168.8,3.15656304]
[1642549303588,0.00170527,3169.3,3168.8,3.15656304]
[1642549303989,0.00113685,3169.2,3168.8,3.15656304]
[1642549304390,0.00284212,3169.5,3168.8,3.15656304]
[1642549304589,1.26919552,3169.1,3169.0,0.788775]
[1642549304789,1.26919552,3169.1,3169.0,4.420875]
[1642549304989,1.26919552,3169.1,3169.0,4.720875]
[1642549305389,1.26919552,3169.1,3169.0,4.327565]
[1642549305895,1.26919552,3169.1,3169.0,4.420875]
[1642549306089,1.26919552,3169.1,3169.0,3.6321]
[1642549306490,1.26919552,3169.1,3169.0,0.8821]
[1642549309442,1.26919552,3169.1,3169.0,0.78879]
[1642549311793,1.26919552,3169.1,3168.9,0.455]
[1642549312293,1.26919552,3169.1,3169.0,8.43998813]
[1642549313096,1.26919552,3169.1,3169.0,6.86256156]
[1642549313294,1.26919552,3169.1,3169.0,9.50577044]
[1642549313700,1.26919552,3169.1,3169.0,9.59908044]
[1642549314736,1.26919552,3169.1,3169.0,1.95587156]
[1642549315340,1.26919552,3169.1,3169.0,4.67415139]
[1642549315541,1.26919552,3169.1,3169.0,1.95587156]
[1642549315941,1.26919552,3169.1,3169.0,4.59577371]
[1642549320996,1.26919552,3169.1,3169.0,5.17697371]
[1642549321195,0.0022737,3169.4,3169.1,2.84041131]
[1642549321499,10.5486,3170.2,3169.3,3.8387]
[1642549321695,10.5486,3170.2,3169.4,2.70653923]
[1642549321939,0.00568424,3170.0,3169.3,3.59831]
[1642549322347,0.00511582,3169.9,3169.4,1.07373156]
[1642549322541,1.3033497,3169.8,3169.5,0.78868]
[1642549322740,1.30789709,3169.8,3169.5,0.78868]
[1642549322942,0.00397897,3169.7,3169.5,0.78868]
[1642549323141,0.00397897,3169.7,3169.6,0.78866]
[1642549323342,2.862081,3169.8,3169.6,0.78866]
[1642549323941,1.5587313,3169.7,3169.6,0.78866]
[1642549325782,4.6587313,3169.7,3169.6,0.78866]
[1642549326387,4.6587313,3169.7,3169.5,0.78868]
[1642549326791,0.00341054,3169.6,3169.5,0.78868]
[1642549326989,1.56214184,3169.6,3169.5,2.36602]
[1642549327787,0.00341054,3169.6,3169.5,3.43739278]
[1642549329633,1.54563706,3169.6,3169.5,3.43739278]
[1642549329839,1.54563706,3169.6,3169.5,9.8879712]
[1642549330034,3.1,3169.7,3169.6,5.5]
[1642549330236,3.1,3169.7,3169.6,12.071]
[1642549330539,2.12478459,3170.1,3169.7,7.86538]
[1642549330736,1.18662131,3170.1,3169.8,2.96498637]
[1642549330936,1.18662131,3170.1,3170.0,3.64331]
[1642549331138,1.18662131,3170.1,3170.0,4.22431]
[1642549331339,1.18946343,3170.1,3170.0,4.22431]
[1642549331541,1.18946343,3170.1,3170.0,5.80123]
[1642549331945,1.18946343,3170.1,3170.0,5.0810493]
[1642549332339,0.00284212,3170.1,3170.0,5.2018493]
[1642549332540,0.00284212,3170.1,3170.0,2.37283]
[1642549332742,0.00284212,3170.1,3170.0,2.36963]
[1642549332940,0.00284212,3170.1,3170.0,2.37283]
[1642549333195,0.00284212,3170.1,3170.0,2.25123]
[1642549333393,0.00284212,3170.1,3170.0,2.36963]
[1642549333601,0.00284212,3170.1,3170.0,2.37043]
[1642549333994,0.00284212,3170.1,3170.0,2.36883]
[1642549334195,0.00284212,3170.1,3170.0,2.25123]
[1642549334397,0.00284212,3170.1,3170.0,2.37043]
[1642549334608,0.1261,3171.1,3170.2,5.5]
[1642549334800,3.02148641,3171.7,3171.2,0.16468701]
[1642549334999,3.02148641,3171.7,3171.3,5.59331]
[1642549335197,3.02148641,3171.7,3171.3,6.20871744]
[1642549335401,2.26009473,3171.4,3171.3,7.20871744]
[1642549335606,0.00738951,3171.4,3171.3,7.20871744]
[1642549335799,0.00738951,3171.4,3171.3,7.99679744]
[1642549336003,0.00738951,3171.4,3171.3,1.24308]
[1642549336205,0.00738951,3171.4,3171.3,0.455]
[1642549337041,3.10738951,3171.4,3171.3,0.455]
[1642549337245,3.10738951,3171.4,3171.3,1.24331]
[1642549340047,3.10738951,3171.4,3171.3,0.455]
[1642549342301,6.22122365,3171.4,3170.9,0.455]
[1642549342605,0.00682108,3171.3,3170.9,0.7884]
[1642549342999,0.00625266,3171.2,3170.7,3.15348]
[1642549343199,0.00625266,3171.2,3170.4,1.57689]
[1642549343400,0.00568424,3171.1,3170.3,1.70289]
[1642549343600,0.00568424,3171.1,3170.5,0.78849]
[1642549343800,6.08955704,3171.4,3170.5,0.78849]
[1642549343801,0.00511581,3171.0,3170.5,0.78849]
[1642549344001,1.26571577,3170.9,3170.6,0.21931]
[1642549344201,3.1,3171.4,3170.8,1.57631]
[1642549344437,3.1,3171.4,3170.9,1.46254]
[1642549344635,0.00227369,3171.3,3170.9,1.46254]
[1642549345037,0.00170527,3171.2,3171.1,0.78823]
[1642549345248,0.00170527,3171.2,3171.1,1.36923]
[1642549345442,1.40755331,3171.2,3171.1,1.36923]
[1642549345641,1.40755331,3171.2,3171.1,3.61923]
[1642549346242,0.00170527,3171.2,3171.1,3.61923]
[1642549346643,3.1,3171.4,3171.2,5.5]
[1642549346844,3.1,3171.4,3171.3,6.081]
[1642549347043,3.1,3171.4,3171.3,6.86907]
[1642549347242,3.10113685,3171.4,3171.3,1.36907]
[1642549347848,3.10113685,3171.4,3171.3,1.76238]
[1642549348101,3.10113685,3171.4,3171.3,1.46238]
[1642549348392,3.10113685,3171.4,3171.3,1.76238]
[1642549348593,3.10113685,3171.4,3171.3,5.81238]
[1642549348993,3.10113685,3171.4,3171.3,6.11238]
[1642549349395,3.10113685,3171.4,3171.3,3.06238]
[1642549349594,3.10113685,3171.4,3171.3,2.76238]
[1642549349894,3.10113685,3171.4,3171.3,1.46238]
[1642549350895,4.10237181,3171.4,3171.3,1.46238]
[1642549352539,4.10237181,3171.4,3171.3,1.76238]
[1642549352739,3.10113685,3171.4,3171.3,1.46238]
[1642549352944,3.10113685,3171.4,3171.3,3.16500958]
[1642549354048,3.10113685,3171.4,3171.3,1.46238]
[1642549354247,3.10113685,3171.4,3171.3,1.41238]
[1642549354443,3.10113685,3171.4,3171.3,1.33638]
[1642549355250,4.3,3171.3,3171.1,0.78808]
[1642549355452,4.3,3171.3,3170.7,0.00113685]
[1642549355695,4.3,3171.3,3170.7,0.78957685]
[1642549355891,4.3,3171.3,3170.7,0.00284212]
[1642549356088,4.3,3171.3,3170.3,0.455]
[1642549356089,4.3,3171.3,3170.8,0.00227369]
[1642549356292,1.5220714,3171.2,3170.7,0.00284212]
[1642549356488,1.5220714,3171.2,3170.5,0.00397896]
[1642549358495,1.51109857,3171.2,3170.5,0.00397896]
[1642549358696,1.51109857,3171.2,3170.6,1.57693]
[1642549358896,1.51109857,3171.2,3170.6,3.25611322]
[1642549359097,1.51109857,3171.2,3170.7,0.00284212]
[1642549359545,4.5002171,3171.2,3170.7,0.00284212]
[1642549360348,4.6262171,3171.2,3170.7,0.00284212]
[1642549360646,4.6262171,3171.2,3170.3,0.00511581]
[1642549360850,5.6604171,3171.2,3170.3,0.00511581]
[1642549361047,1.27177304,3171.1,3170.1,0.00625266]
[1642549361249,3.4212878,3171.0,3170.1,0.00625266]
[1642549361448,3.4212878,3171.0,3170.0,0.00682108]
[1642549361648,3.4212878,3171.0,3170.1,0.7886]
[1642549361849,3.2952878,3171.0,3170.1,0.9146]
[1642549362048,3.2952878,3171.0,3170.2,0.00568423]
[1642549362448,4.0839178,3171.0,3170.2,0.00568423]
[1642549362849,4.2099178,3171.0,3170.2,0.00568423]
[1642549363494,3.4212878,3171.0,3170.2,0.00568423]
[1642549363790,3.4212878,3171.0,3170.3,1.69970381]
[1642549363990,3.4212878,3171.0,3170.3,2.48825381]
[1642549364192,3.4212878,3171.0,3170.4,0.00454739]
[1642549365494,3.2952878,3171.0,3170.4,0.00454739]
[1642549367740,0.126,3171.1,3170.4,0.00454739]
[1642549368947,10.79454592,3171.2,3170.4,0.00454739]
[1642549369546,0.78859,3171.1,3170.4,0.00454739]
[1642549369748,2.99204161,3171.0,3170.4,0.00454739]
[1642549369948,2.99204161,3171.0,3170.1,0.126]
[1642549369949,2.99204161,3171.0,3170.3,0.00511581]
[1642549370150,2.99204161,3171.0,3170.5,1.70083778]
[1642549370593,2.99204161,3171.0,3170.6,0.00341054]
[1642549371399,2.99204161,3171.0,3170.2,0.00568423]
[1642549371400,3.78066161,3171.0,3170.2,0.00568423]
[1642549371590,0.7886399,3170.9,3170.3,0.126]
[1642549371792,3.03335589,3170.8,3170.3,0.126]
[1642549371991,3.03335589,3170.8,3170.4,0.00454739]
[1642549372391,1.72747188,3170.9,3170.4,0.00454739]
[1642549372592,1.25603696,3170.7,3170.4,1.70745969]
[1642549372991,1.25603696,3170.7,3170.5,0.00397896]
[1642549374443,1.25603696,3170.7,3170.1,0.00625266]
[1642549374642,1.25603696,3170.7,3170.2,0.126]
[1642549375044,1.25603696,3170.7,3170.3,0.00511581]
[1642549375646,1.25603696,3170.7,3170.3,1.71037487]
[1642549375847,1.25603696,3170.7,3170.3,1.83637487]
[1642549376045,1.25603696,3170.7,3170.4,0.00454739]
[1642549377650,1.25603696,3170.7,3170.5,1.71037487]
[1642549377851,4.35603696,3170.7,3170.5,1.71037487]
[1642549378097,4.35603696,3170.7,3170.6,0.00341054]
[1642549379491,4.35603696,3170.7,3170.3,0.00511581]
[1642549380198,5.29517957,3170.7,3170.3,0.00511581]
[1642549380795,4.35603696,3170.7,3170.4,1.71037487]
[1642549381096,4.35603696,3170.7,3170.5,0.00397896]
[1642549382142,4.35603696,3170.7,3170.6,1.71037487]
[1642549382543,4.35603696,3170.7,3170.6,1.71378541]
[1642549382743,4.35603696,3170.7,3170.6,0.00341054]
[1642549383147,4.35603696,3170.7,3170.3,0.00511581]
[1642549383347,4.35603696,3170.7,3170.3,0.13111581]
[1642549383748,4.35603696,3170.7,3170.4,0.00454739]
[1642549384150,4.35603696,3170.7,3170.4,1.71492226]
[1642549384548,4.35603696,3170.7,3170.5,0.00397896]
[1642549385152,4.35603696,3170.7,3170.5,1.71435383]
[1642549385596,4.35603696,3170.7,3170.6,0.00341054]
[1642549386393,4.35603696,3170.7,3170.3,0.00511581]
[1642549386593,5.29789807,3170.7,3170.4,0.00454739]
[1642549386797,5.29789807,3170.7,3170.3,0.13111581]
[1642549386998,5.29789807,3170.7,3170.4,0.00454739]
[1642549387695,4.35603696,3170.7,3170.3,0.00511581]
[1642549387996,4.35603696,3170.7,3170.5,1.71037487]
[1642549388198,4.35603696,3170.7,3170.4,1.71037487]
[1642549388396,4.35603696,3170.7,3170.6,0.00341054]
[1642549388597,4.35603696,3170.7,3170.5,0.00397896]
[1642549388797,0.94106469,3170.6,3170.5,0.00397896]
[1642549389646,4.35603696,3170.7,3170.5,1.71435383]
[1642549389941,4.35603696,3170.7,3170.6,0.00341054]
[1642549390641,4.35603696,3170.7,3170.3,0.00511581]
[1642549391041,5.29674992,3170.7,3170.6,1.71037487]
[1642549391445,5.29674992,3170.7,3170.6,1.71378541]
[1642549391649,5.29674992,3170.7,3170.6,0.00341054]
[1642549392044,5.29674992,3170.7,3170.5,0.00397896]
[1642549392250,5.29674992,3170.7,3170.6,1.71037487]
[1642549392647,5.29674992,3170.7,3170.6,1.73445543]
[1642549392845,5.29674992,3170.7,3170.6,0.02408056]
[1642549393490,5.29674992,3170.7,3170.6,1.73445543]
[1642549399544,4.15,3170.6,3170.1,0.126]
[1642549399747,4.15,3170.6,3170.0,1.59185507]
[1642549399748,3.24447358,3170.5,3170.0,1.59185507]
[1642549399945,3.24447358,3170.5,3170.2,0.00227369]
[1642549400786,3.87660151,3170.4,3170.2,0.00227369]
[1642549400986,5.81594466,3170.3,3170.2,0.00227369]
[1642549401586,2.91594466,3170.3,3169.9,0.00397896]
[1642549401788,1.17684127,3170.2,3169.9,0.00397896]
[1642549402387,1.96571127,3170.2,3169.9,0.00397896]
[1642549402792,0.7888571,3170.1,3169.7,0.00511581]
[1642549402988,3.74543989,3170.1,3169.7,0.00511581]
[1642549403193,0.15779,3170.0,3169.7,0.00511581]
[1642549403392,1.60682155,3169.9,3169.6,0.00568424]
[1642549403593,1.80475022,3169.9,3169.6,0.00568424]
[1642549403791,1.71805263,3169.9,3169.6,0.00568424]
[1642549403992,0.126,3169.9,3169.6,0.00568424]
[1642549404442,5.26546069,3169.7,3169.6,0.00568424]
[1642549404945,5.39146069,3169.7,3169.6,0.00568424]
[1642549405348,5.39146069,3169.7,3169.3,0.00738951]
[1642549405543,6.18048069,3169.7,3169.3,0.00738951]
[1642549405943,1.18886067,3169.6,3169.2,0.00795793]
[1642549406545,1.18886067,3169.6,3169.1,0.13472635]
[1642549406746,1.18886067,3169.6,3169.2,0.00795793]
[1642549407146,1.18886067,3169.6,3169.1,0.00852635]
[1642549407548,2.76690267,3169.6,3169.1,0.00852635]
[1642549407748,2.78004651,3169.6,3169.0,0.00909478]
[1642549408797,3.56910651,3169.6,3169.0,0.00909478]
[1642549409798,6.66910651,3169.6,3169.0,0.00909478]
[1642549410996,6.00624651,3169.6,3169.0,0.00909478]
[1642549411600,3.23934384,3169.6,3169.1,0.1262]
[1642549411844,3.11314384,3169.6,3169.2,0.455]
[1642549412044,3.11314384,3169.6,3169.3,0.1262]
[1642549412243,3.11314384,3169.6,3169.4,0.455]
[1642549412443,3.11314384,3169.6,3169.5,4.5762]
[1642549412644,3.11314384,3169.6,3169.5,4.58245266]
[1642549413261,3.11314384,3169.6,3169.5,0.13245266]
[1642549414851,3.11314384,3169.6,3169.5,0.00625266]
[1642549415148,3.11314384,3169.6,3169.4,0.00682108]
[1642549416197,5.11673934,3169.6,3169.4,0.00682108]
[1642549416595,5.11673934,3169.6,3169.0,0.00909478]
[1642549417197,8.07621908,3169.6,3169.0,0.00909478]
[1642549417397,0.78903,3169.4,3169.0,0.00909478]
[1642549417597,0.7890332,3169.3,3169.0,0.00909478]
[1642549417797,0.7890332,3169.3,3168.7,0.1262]
[1642549417798,1.25158604,3169.2,3168.9,0.0096632]
[1642549417997,1.25158604,3169.2,3168.8,0.01023162]
[1642549419345,1.20158604,3169.2,3168.8,0.01023162]
[1642549419743,1.20158604,3169.2,3168.9,1.5513557]
[1642549420142,1.20158604,3169.2,3169.0,0.00909478]
[1642549421346,1.20158604,3169.2,3169.1,1.5513557]
[1642549421747,1.20158604,3169.2,3169.1,1.55988205]
[1642549421949,1.18708604,3169.2,3169.1,1.55988205]
[1642549422850,1.2002338,3169.2,3169.1,1.55988205]
[1642549425401,1.4842238,3169.2,3169.1,1.55988205]
[1642549425897,1.3264338,3169.2,3169.1,1.55988205]
[1642549426496,4.24676155,3169.2,3169.1,1.55988205]
[1642549426697,4.21517155,3169.2,3169.1,1.55988205]
[1642549426942,1.3264338,3169.2,3169.1,1.55988205]
[1642549427344,4.21857106,3169.2,3169.1,1.55988205]
[1642549427544,1.3264338,3169.2,3169.1,1.55988205]
[1642549427745,1.49763446,3169.2,3169.1,1.55988205]
[1642549427947,1.37143446,3169.2,3169.1,1.55988205]
[1642549431692,4.24510076,3169.2,3169.1,1.55988205]
[1642549431895,1.37143446,3169.2,3169.1,1.55988205]
[1642549433903,1.21364446,3169.2,3169.1,1.55988205]
[1642549435752,0.02655842,3169.2,3169.1,1.55988205]
[1642549435949,0.02655842,3169.2,3169.1,1.68608205]
[1642549436249,0.02655842,3169.2,3169.1,4.31203188]
[1642549436750,0.02655842,3169.2,3169.1,7.07987776]
[1642549436951,0.02655842,3169.2,3169.1,8.58388237]
[1642549437649,0.02655842,3169.2,3169.1,7.07987776]
[1642549438102,0.02655842,3169.2,3169.1,4.44108205]
[1642549439108,0.02655842,3169.2,3169.1,2.14108205]
[1642549440304,0.02655842,3169.2,3169.1,1.68608205]
[1642549440305,0.83905842,3169.2,3169.1,1.68608205]
[1642549440506,0.83905842,3169.2,3169.1,1.55988205]
[1642549440507,1.12304842,3169.2,3169.1,1.55988205]
[1642549440806,3.87304842,3169.2,3169.1,1.55988205]
[1642549441003,5.10381044,3169.2,3169.1,1.55988205]
[1642549441609,2.35381044,3169.2,3169.1,1.55988205]
[1642549441844,1.12304842,3169.2,3169.1,1.55988205]
[1642549442844,3.98364145,3169.2,3169.1,1.55988205]
[1642549443247,1.12304842,3169.2,3169.1,1.55988205]
[1642549443647,3.32304842,3169.2,3169.1,1.55988205]
[1642549444256,3.62304842,3169.2,3169.1,1.55988205]
[1642549444747,5.51004877,3169.2,3169.1,1.55988205]
[1642549445597,5.46004877,3169.2,3169.1,1.55988205]
[1642549446493,3.26004877,3169.2,3169.1,1.55988205]
[1642549446694,2.20772101,3169.2,3169.1,1.55988205]
[1642549447093,2.08152101,3169.2,3169.1,1.55988205]
[1642549447292,7.93152101,3169.2,3169.1,0.27084909]
[1642549447493,4.5,3169.1,3168.4,0.1262]
[1642549447692,1.5785156,3168.9,3168.3,1.59185507]
[1642549447893,0.78928,3168.8,3168.5,0.00341054]
[1642549448297,2.45779,3168.6,3168.5,0.00341054]
[1642549448496,3.6577396,3168.6,3168.5,0.00341054]
[1642549448697,0.78927,3168.5,3168.1,0.00568424]
[1642549448898,1.85547,3168.5,3168.1,0.00568424]
[1642549449742,2.6447336,3168.5,3168.1,0.00568424]
[1642549451046,2.6447336,3168.5,3168.2,0.1262]
[1642549451344,2.6447336,3168.5,3168.3,0.00454739]
[1642549451744,2.6447336,3168.5,3168.1,0.00568424]
[1642549451945,2.6447336,3168.5,3168.2,0.1262]
[1642549452150,1.85547,3168.5,3168.2,0.1262]
[1642549452346,1.85547,3168.5,3168.3,0.00454739]
[1642549452746,0.01997576,3168.4,3168.3,0.00454739]
[1642549452949,0.01997576,3168.4,3168.2,0.00511581]
[1642549453902,0.01997576,3168.4,3168.1,0.13188424]
[1642549454302,0.01997576,3168.4,3168.2,0.00511581]
[1642549454501,0.01997576,3168.4,3168.3,0.1262]
[1642549454902,0.01997576,3168.4,3168.3,0.13074739]
[1642549455108,0.01997576,3168.4,3168.3,0.00454739]
[1642549455507,0.01997576,3168.4,3168.2,0.00511581]
[1642549455704,0.01997576,3168.4,3168.3,0.1262]
[1642549456105,0.01997576,3168.4,3168.3,0.13074739]
[1642549456303,0.01997576,3168.4,3168.3,0.00454739]
[1642549456504,0.01997576,3168.4,3168.3,0.13074739]
[1642549456706,0.01997576,3168.4,3168.2,0.00511581]
[1642549456947,0.01997576,3168.4,3168.3,0.00454739]
[1642549457148,0.01997576,3168.4,3168.2,0.00511581]
[1642549457950,0.01997576,3168.4,3168.3,0.1262]
[1642549458153,0.01997576,3168.4,3168.1,0.1262]
[1642549458354,0.0211126,3168.4,3168.1,0.91528]
[1642549458753,0.0211126,3168.4,3168.2,0.78908]
[1642549458955,0.0211126,3168.4,3168.1,0.1262]
[1642549460796,0.0211126,3168.4,3168.0,0.91533]
[1642549461096,0.0211126,3168.4,3168.0,0.1262]
[1642549462504,0.0211126,3168.4,3168.0,0.91533]
[1642549463704,0.0211126,3168.4,3168.0,4.11026758]
[1642549464952,0.0211126,3168.4,3168.2,0.78905]
[1642549465164,0.0211126,3168.4,3168.3,4.3]
[1642549465454,0.0211126,3168.4,3168.3,7.6522122]
[1642549465655,0.0211126,3168.4,3168.3,4.8854]
[1642549465853,1.26e-05,3168.4,3168.3,6.10145216]
[1642549466053,1.26e-05,3168.4,3168.3,7.4712282]
[1642549466254,0.1262,3169.5,3168.3,7.4712282]
[1642549466255,0.1262,3169.5,3168.5,5.5]
[1642549466454,0.1262,3169.5,3168.9,0.78866]
[1642549466653,0.00568424,3169.4,3169.0,0.5812]
[1642549466853,0.00568424,3169.4,3169.1,0.455]
[1642549467056,0.00511581,3169.3,3169.2,0.1262]
[1642549467256,0.00511581,3169.3,3169.2,9.13472581]
[1642549467455,0.00511581,3169.3,3169.2,9.14352581]
[1642549467662,0.00511581,3169.3,3169.2,9.14112581]
[1642549467857,0.00511581,3169.3,3169.2,9.13472581]
[1642549468106,0.00511581,3169.3,3169.2,8.34449581]
[1642549468301,0.00511581,3169.3,3169.2,7.2331]
[1642549468502,0.00511581,3169.3,3169.2,10.11425174]
[1642549468702,0.00511581,3169.3,3169.2,10.08356174]
[1642549468903,0.00511581,3169.3,3169.2,9.86405174]
[1642549469104,0.00511581,3169.3,3169.2,4.36405174]
[1642549469305,0.00511581,3169.3,3169.2,7.39515844]
[1642549470310,0.00511581,3169.3,3169.2,5.79406996]
[1642549472747,0.0136736,3169.3,3169.2,5.81202815]
[1642549473951,3.1136736,3169.3,3169.2,5.81202815]
[1642549475611,3.1136736,3169.3,3169.2,5.93822815]
[1642549475998,3.1136736,3169.3,3169.2,2.92927641]
[1642549476200,3.1136736,3169.3,3169.2,1.90297641]
[1642549482872,3.1136736,3169.3,3169.2,1.44797641]
[1642549485110,3.1136736,3169.3,3169.2,3.74797641]
[1642549485914,3.1136736,3169.3,3169.2,1.44797641]
[1642549497549,3.10855779,3169.3,3169.2,1.44797641]
[1642549503754,3.10677103,3169.3,3169.2,5.95297641]
[1642549503954,3.10677103,3169.3,3169.2,1.90297641]
[1642549505609,3.10677103,3169.3,3169.2,3.50406489]
[1642549507207,3.10677103,3169.3,3169.2,1.90297641]
[1642549507807,3.1,3169.3,3169.2,3.48047641]
[1642549508007,3.1,3169.3,3169.2,3.60667641]
[1642549508610,3.08902261,3169.3,3169.2,3.60667641]
[1642549509010,3.08902261,3169.3,3169.2,3.48047641]
[1642549509449,3.08902261,3169.3,3169.2,5.0835793]
[1642549510255,3.09715734,3169.3,3169.2,3.48047641]
[1642549515314,3.09715734,3169.3,3169.2,5.88210913]
[1642549515521,6.8089,3169.8,3169.3,5.55]
[1642549515716,6.8089,3169.8,3169.4,1.36978]
[1642549515909,0.00738951,3169.7,3169.4,1.48818]
[1642549516111,0.00738951,3169.7,3169.4,1.49058]
[1642549516410,0.00682108,3169.6,3169.4,1.49298]
[1642549516611,0.00682108,3169.6,3169.5,6.98001822]
[1642549516852,5.6514,3169.8,3169.6,0.78855]
[1642549517052,5.6514,3169.8,3169.7,6.005]
[1642549517654,1.1923,3170.3,3169.8,0.78855]
[1642549518056,0.01023163,3170.2,3169.8,1.5771]
[1642549518458,1.1923,3170.3,3169.8,1.5771]
[1642549518459,0.0096632,3170.1,3169.8,1.5771]
[1642549518860,0.00909478,3170.0,3169.9,4.28001822]
[1642549521107,0.00909478,3170.0,3169.9,4.85661822]
[1642549521303,0.00909478,3170.0,3169.9,4.85341822]
[1642549521704,0.00909478,3170.0,3169.9,6.46130659]
[1642549521905,0.00909478,3170.0,3169.9,6.46050659]
[1642549522104,0.00909478,3170.0,3169.9,6.45970659]
[1642549522303,0.00909478,3170.0,3169.9,6.45890659]
[1642549522503,0.00909478,3170.0,3169.9,6.58410659]
[1642549522711,0.00909478,3170.0,3169.9,6.60450775]
[1642549522903,0.00909478,3170.0,3169.9,6.48610775]
[1642549524348,0.00909478,3170.0,3169.9,3.63610775]
[1642549524949,3.10909478,3170.0,3169.9,3.63610775]
[1642549526354,3.10909478,3170.0,3169.9,2.03141938]
[1642549526556,3.10909478,3170.0,3169.9,5.38141938]
[1642549527156,3.10909478,3170.0,3169.9,6.98610775]
[1642549527754,3.10909478,3170.0,3169.9,6.96570659]
[1642549527963,3.10909478,3170.0,3169.9,6.83970659]
[1642549528212,3.10909478,3170.0,3169.9,5.23501822]
[1642549529015,3.10909478,3170.0,3169.9,1.86412071]
[1642549541957,5.93655557,3170.0,3169.9,1.86412071]
[1642549542158,3.10909478,3170.0,3169.9,1.86412071]
[1642549542358,4.49214302,3170.0,3169.9,1.86412071]